Cogmind - Beta 10.2 *** ADVENTURER MODE // 2021.05.17 @ 23:07:32 Player: Attayla Result: Self-destructed Performance ------------- Evolutions (2) 1000 Regions Visited (5) 1000 Robots Destroyed (42) 210 Value Destroyed (1149) 1149 Prototype IDs (1) 20 Alien Tech Used (0) 0 Bonus (0) 0 TOTAL SCORE: 3379 Bonus ------- None Cogmind --------- Core Integrity 286/550 Matter 26/400 Energy 100/100 System Corruption 2% Temperature Cool (0) Movement Treading (170) Location -8/Materials Parts ------- > --- POWER (1) -------- (None) > --- PROPULSION (2) --- Armored Treads Carbon-fiber Leg > --- UTILITY (4) ------ Medium Matter Pod Advanced Visual Processing Unit > --- WEAPON (4) ------- Improved Light Cannon > --- INVENTORY (4) ---- Light Ion Engine Light Treads Aluminum Leg Aluminum Leg Peak State ------------ > --- POWER ------------ Light Nuclear Core > --- PROPULSION ------- Aluminum Leg Carbon-fiber Leg > --- UTILITY ---------- Medium Matter Pod Advanced Visual Processing Unit Decoy Drone Bay > --- WEAPON ----------- Light Cannon Light Cannon Improved Light Cannon Rocket Launcher > --- INVENTORY -------- Light Ion Engine Light Treads Aluminum Leg [Rating: 31] Favorites ----------- Power Light Nuclear Core Engine Light Ion Engine Power Core Light Nuclear Core Propulsion Aluminum Leg Treads Armored Treads Leg Aluminum Leg Utility Medium Matter Pod Device Decoy Drone Bay Storage Medium Matter Pod Processor Targeting Computer Weapon Light Cannon Ballistic Gun Light Assault Rifle Ballistic Cannon Light Cannon Launcher Rocket Launcher Build | -11 -10 -10 -9 -9 -8 ------- Run | Scr Mat Min Mat Min Mat Slots Evolved 4 | . . . 2 . 2 Power . | . . . . . . Propulsion . | . . . . . . Utility 2 | . . . . . 2 Weapon 2 | . . . 2 . . Parts Attached 24 | 5 1 2 8 4 4 Power 4 | 1 . 1 1 1 . Engine 2 | 1 . 1 . . . Core 2 | . . . 1 1 . Reactor . | . . . . . . Propulsion 6 | 2 . . . 2 2 Treads 1 | . . . . . 1 Leg 5 | 2 . . . 2 1 Wheel . | . . . . . . Hover . | . . . . . . Flight . | . . . . . . Utility 6 | . 1 . 2 1 2 Device 2 | . . . 1 1 . Storage 2 | . . . 1 . 1 Processor 2 | . 1 . . . 1 Hackware . | . . . . . . Protection . | . . . . . . Artifact . | . . . . . . Weapon 8 | 2 . 1 5 . . Energy Gun . | . . . . . . Energy Cannon . | . . . . . . Ballistic Gun 4 | 2 . . 2 . . Ballistic Cannon 3 | . . . 3 . . Launcher 1 | . . 1 . . . Special Weapon . | . . . . . . Impact Weapon . | . . . . . . Slashing Weapon . | . . . . . . Piercing Weapon . | . . . . . . Special Melee Weapon . | . . . . . . Unidentified Prototypes 1 | . . . . 1 . Parts Lost 5 | . . . . . 5 Power 1 | . . . . . 1 Propulsion . | . . . . . . Utility 1 | . . . . . 1 Weapon 3 | . . . . . 3 Highest Loss Streak 3 | . . . . . 3 Average Slot Usage (%) 86 | . 84 85 95 88 79 Engine 5 | . 14 14 10 . . Core 5 | . . . . 11 8 Leg 21 | . 28 28 22 22 16 Device 4 | . . . 1 10 7 Storage 4 | . . . 8 . 9 Processor 8 | . 13 14 11 . 8 Ballistic Gun 8 | . 28 19 9 . . Ballistic Cannon 18 | . . . 20 33 21 Launcher 7 | . . 8 11 11 6 Naked Turns . | . . . . . . Heaviest Build 35 | 5 5 8 21 33 35 Greatest Support 25 | 20 20 20 20 20 25 Greatest Overweight (x) 1 | . . . 1 1 1 Average Overweight (x) . | . . . . 1 . Largest Inventory Capacity 4 | 4 4 4 4 4 4 Average Capacity 4 | 4 4 4 4 4 4 Most Carried 4 | 2 1 2 4 4 4 Average Carried 2 | . . 1 2 3 2 Final Capacity 4 | 4 4 4 4 4 4 Final Carried 4 | . 1 2 4 3 4 Class Distribution -------------------- 54% | Mutant 29% | Gunner 15% | Skirmisher Dominant Class ---------------- Mutant | -10/Materials Mutant | -10/Mines Gunner | -9/Materials Gunner | -9/Mines Mutant | -8/Materials Resources | -11 -10 -10 -9 -9 -8 ----------- Run | Scr Mat Min Mat Min Mat Matter Collected 814 | 260 32 53 258 121 90 Remotely . | . . . . . . Salvage Created 1002 | . 101 138 411 118 234 Parts 69 | . 5 8 23 10 23 Haulers Intercepted 2 | . . . 1 . 1 Recyclers Shooed 1 | . 1 . . . . Parts Field Recycled . | . . . . . . Retrieved Matter . | . . . . . . Parts Self-Destructed . | . . . . . . Prevented . | . . . . . . Kills | -11 -10 -10 -9 -9 -8 ------- Run | Scr Mat Min Mat Min Mat Combat Hostiles Destroyed 30 | . 3 4 9 6 8 Guns 3 | . 3 . . . . Cannons 13 | . . . 5 4 4 AOE 14 | . . 4 4 2 4 Classes Destroyed 13 | . 2 2 4 2 3 Worker 1 | . . . . . 1 Builder 3 | . . . 1 . 2 Tunneler 4 | . . 2 . 1 1 Hauler 2 | . . . 1 . 1 Recycler 2 | . 1 . 1 . . Watcher 1 | . . . . . 1 Swarmer 6 | . 3 . . . 3 Grunt 16 | . . 4 6 3 3 Brawler 1 | . . . 1 . . Sentry 3 | . . . 2 . 1 Demolisher 2 | . . . . 2 . Hunter 1 | . . . . . 1 Assembled 1 | . . . . 1 . Best Kill Streak 9 | . 4 6 9 3 6 Combat Bots Only 4 | . 3 4 4 3 4 Max Kills in Single Turn 4 | . 1 4 2 2 3 Gunslinging . | . . . . . . Exploded 2 | . . 2 1 1 2 Melee . | . . . . . . Uniques/NPCs Destroyed . | . . . . . . Combat | -11 -10 -10 -9 -9 -8 -------- Run | Scr Mat Min Mat Min Mat Damage Taken 1494 | 41 109 . 179 140 1025 Core 305 | . 14 . 27 . 264 Absorbed by Shields . | . . . . . . Core Remaining (%) 95 | 100 . 94 . 93 . Volleys Fired 65 | 5 11 3 15 9 22 Largest 4 | 2 2 1 4 4 4 Hottest 142 | 40 40 33 142 142 142 Shots Fired 154 | 10 22 3 34 20 65 Gun 32 | 10 22 . . . . Cannon 97 | . . . 27 15 55 Launcher 25 | . . 3 7 5 10 Special . | . . . . . . Kinetic 129 | 10 22 . 27 15 55 Thermal . | . . . . . . Explosive 25 | . . 3 7 5 10 Electromagnetic . | . . . . . . Robot Hit Streak 25 | 2 7 8 25 18 22 Robot Miss Streak 4 | 1 4 . 2 . 3 Penetration Max . | . . . . . . Secondary Targets . | . . . . . . Shots Hit Robots 98 | 7 11 1 24 16 39 Core Hits 75 | 2 8 9 17 12 27 Critical Hits 3 | 1 . . . 1 1 Critical Kills . | . . . . . . Critical Parts Destroyed 3 | 1 . . . 1 1 Melee Attacks . | . . . . . . Impact . | . . . . . . Slashing . | . . . . . . Piercing . | . . . . . . Sneak Attacks . | . . . . . . Combat Hostiles . | . . . . . . Follow-up Attacks . | . . . . . . Damage Inflicted 2500 | 50 93 409 608 328 1012 Guns 136 | 50 86 . . . . Cannons 1160 | . . . 431 250 479 Explosions 1189 | . . 409 177 78 525 Melee . | . . . . . . Ramming 15 | . 7 . . . 8 Kinetic 1296 | 50 86 . 431 250 479 Thermal . | . . . . . . Explosive 1189 | . . 409 177 78 525 Electromagnetic . | . . . . . . Impact . | . . . . . . Slashing . | . . . . . . Piercing . | . . . . . . Highest Corruption 2 | . . . . . 2 Average Corruption 2 | . . . . . 2 Corruption Purged . | . . . . . . Overload Shots . | . . . . . . Overflow Damage 16 | . . 7 . . 9 Projectiles 2 | . . . . . 2 Explosions 14 | . . 7 . . 7 Melee . | . . . . . . Knockbacks 12 | . . . . 4 8 Impact . | . . . . . . Kinetic 12 | . . . . 4 8 Secondary . | . . . . . . Self-Inflicted Damage 36 | . 3 . 33 . . Shots 1 | . . . 1 . . Rammed 5 | . 1 . . . 4 Targets Rammed 7 | . 1 . . . 6 Kicked 2 | . . . . . 2 Crushed . | . . . . . . Highest Temperature 264 | 12 . . 200 99 264 Average Temperature 74 | 7 . . 83 40 82 Received Heat Transfer 477 | 30 . . 69 18 360 Siege Activations . | . . . . . . Robots Corrupted . | . . . . . . Combat Hostiles . | . . . . . . Parts Fried . | . . . . . . Impact Corruptions . | . . . . . . Robots Melted . | . . . . . . Combat Hostiles . | . . . . . . Parts Melted . | . . . . . . Heat Transferred . | . . . . . . Parts Sabotaged . | . . . . . . Parts Stolen . | . . . . . . Parts Stripped . | . . . . . . Power Chain Reactions . | . . . . . . Missiles Intercepted . | . . . . . . Alert | -11 -10 -10 -9 -9 -8 ------- Run | Scr Mat Min Mat Min Mat Peak Influence 408 | . 90 119 333 224 408 Initial 109 | . . 29 39 109 73 Average 156 | . 35 51 141 165 285 Maximum Alert Level 2 | . . . 1 1 2 Low Security (%) 68 | 100 100 100 73 72 29 Level 1 26 | . . . 26 27 52 Level 2 5 | . . . . . 17 Level 3 . | . . . . . . Level 4 . | . . . . . . Level 5 . | . . . . . . High Security . | . . . . . . Max Security . | . . . . . . Squads Dispatched 2 | . . . . . 2 Investigation 1 | . . . . . 1 Extermination . | . . . . . . Reinforcement 1 | . . . . . 1 Assault . | . . . . . . Garrison . | . . . . . . Intercept . | . . . . . . Construction Impeded 1 | . . . . . 1 Haulers Reinforced . | . . . . . . Stealth | -11 -10 -10 -9 -9 -8 --------- Run | Scr Mat Min Mat Min Mat Distress Signals 3 | . 1 . 1 1 . Communications Jammed . | . . . . . . Distress Signals . | . . . . . . Times Spotted 50 | 1 4 3 10 14 18 Peak Tracking Total 13 | 1 3 4 4 13 9 Tactical Retreats . | . . . . . . Traps | -11 -10 -10 -9 -9 -8 ------- Run | Scr Mat Min Mat Min Mat Traps Triggered 1 | . . . . . 1 Indirectly . | . . . . . . Trap Hack Attempts . | . . . . . . Triggered . | . . . . . . Disarmed . | . . . . . . Reprogrammed . | . . . . . . Reused . | . . . . . . Traps Extracted . | . . . . . . Installed . | . . . . . . Triggered . | . . . . . . Machines | -11 -10 -10 -9 -9 -8 ---------- Run | Scr Mat Min Mat Min Mat Machines Disabled 6 | . . . 3 . 3 Max in Single Turn 1 | . . . 1 . 1 Machines Sabotaged . | . . . . . . Garrisons Compromised . | . . . . . . Overloaded Fab Kills . | . . . . . . Fab Network Shutdowns . | . . . . . . Hacking | -11 -10 -10 -9 -9 -8 --------- Run | Scr Mat Min Mat Min Mat Machines Accessed 1 | . . . . 1 . Terminals . | . . . . . . Fabricators . | . . . . . . Repair Stations . | . . . . . . Recycling Units . | . . . . . . Scanalyzers . | . . . . . . Garrison Access . | . . . . . . Total Hacks 1 | . . . . 1 . Successful 1 | . . . . 1 . Failed . | . . . . . . Catastrophic . | . . . . . . Database Lockouts . | . . . . . . Manual . | . . . . . . Terminals . | . . . . . . Fabricators . | . . . . . . Repair Stations . | . . . . . . Recycling Units . | . . . . . . Scanalyzers . | . . . . . . Garrison Access . | . . . . . . Terminal Hacks 1 | . . . . 1 . Open Door 1 | . . . . 1 . Fabricator Hacks . | . . . . . . Repair Station Hacks . | . . . . . . Recycling Unit Hacks . | . . . . . . Scanalyzer . | . . . . . . Garrison Access Hacks . | . . . . . . Unauthorized Hacks . | . . . . . . Terminals . | . . . . . . Fabricators . | . . . . . . Repair Stations . | . . . . . . Recycling Units . | . . . . . . Scanalyzers . | . . . . . . Garrison Access . | . . . . . . Data Cores Recovered . | . . . . . . Used . | . . . . . . Hacking Detections . | . . . . . . Full Trace Events . | . . . . . . Feedback Events . | . . . . . . Feedback Blocked . | . . . . . . Robot Schematics Acquired . | . . . . . . Robots Built . | . . . . . . Matter . | . . . . . . Time . | . . . . . . Total Robot Build Rating . | . . . . . . Part Schematics Acquired . | . . . . . . Parts Built . | . . . . . . Matter . | . . . . . . Time . | . . . . . . Total Part Build Rating . | . . . . . . Parts Repaired . | . . . . . . Time . | . . . . . . Parts Recycled . | . . . . . . Recycled Matter . | . . . . . . Retrieved Matter . | . . . . . . Retrieved Components . | . . . . . . Parts Scanalyzed . | . . . . . . Part Schematics Acquired . | . . . . . . Parts Damaged . | . . . . . . Bothacking | -11 -10 -10 -9 -9 -8 ------------ Run | Scr Mat Min Mat Min Mat Used RIF Installer . | . . . . . . Robots Hacked . | . . . . . . Non-combat . | . . . . . . Combat . | . . . . . . Robot Hacks Applied . | . . . . . . Relay Couplers Released . | . . . . . . Robots Rewired . | . . . . . . Allies Hacked . | . . . . . . Hacks Repelled . | . . . . . . Allies | -11 -10 -10 -9 -9 -8 -------- Run | Scr Mat Min Mat Min Mat Total Allies . | . . . . . . Largest Group . | . . . . . . Highest-Rated Group . | . . . . . . Highest-Rated Ally . | . . . . . . Total Orders . | . . . . . . Ally Attacks . | . . . . . . Total Damage . | . . . . . . Kills . | . . . . . . Allies Corrupted . | . . . . . . Allies Melted . | . . . . . . Intel | -11 -10 -10 -9 -9 -8 ------- Run | Scr Mat Min Mat Min Mat Robot Analysis Total . | . . . . . . Derelict Logs Recovered . | . . . . . . Drone Launches 2 | . . . . 2 . Drone Recoveries . | . . . . . . Exploration | -11 -10 -10 -9 -9 -8 ------------- Run | Scr Mat Min Mat Min Mat Turns Passed 1265 | 83 181 111 256 261 373 Spaces Moved 765 | 61 124 83 161 147 189 Core 18 | 18 . . . . . Treads 30 | . . . . . 30 Legs 717 | 43 124 83 161 147 159 Wheels . | . . . . . . Hover . | . . . . . . Flight . | . . . . . . Fastest Speed 50 | 50 120 120 120 150 120 Average Speed 132 | 99 120 120 122 150 151 Slowest Speed 170 | 120 120 120 150 150 170 Overloaded Moves . | . . . . . . Propulsion Burnouts . | . . . . . . Robots Hopped . | . . . . . . Cave-ins Triggered . | . . . . . . Exploration Rate (%) 21 | 6 29 20 18 30 28 Regions Visited 5 Branch Regions 2 Pre-discovered Areas . | . . . . . . Known Exits Taken . | . . . . . . Unknown Exits Taken 5 | 1 1 1 1 1 . Scrap Searched . | . . . . . . Spaces Dug . | . . . . . . Terrain Destroyed 197 | . . 33 91 32 41 Melee . | . . . . . . Projectile 1 | . . . 1 . . AOE 196 | . . 33 90 32 41 Terrain Rammed . | . . . . . . Walls Destroyed . | . . . . . . Machines Disabled . | . . . . . . Actions | -11 -10 -10 -9 -9 -8 --------- Run | Scr Mat Min Mat Min Mat Total 893 | 75 138 90 192 174 224 Wait 5 | . . 2 . 3 . Move 761 | 60 124 82 160 146 189 Hop . | . . . . . . Pick Up 23 | 5 2 1 7 5 3 Fast Attach . | . . . . . . Attach 12 | 5 1 . 3 1 2 Detach 1 | . . . . 1 . Swap 12 | . . 2 5 3 2 Drop 8 | . . . 2 6 . Fire 65 | 5 11 3 15 9 22 Melee . | . . . . . . Ram . | . . . . . . Kick 2 | . . . . . 2 Crush 4 | . . . . . 4 Escape Stasis . | . . . . . . Rewire . | . . . . . . Trap . | . . . . . . Miscellaneous . | . . . . . . Route ------- -11/Scrapyard -10/Materials -10/Mines -9/Materials -9/Mines -8/Materials History --------- Turn | Location | Event 2 | -11/Scrapyard | Met Revision 17 59 | -11/Scrapyard | Discovered new exit (range 8) 84 | -11/Scrapyard | Entered Materials 256 | -10/Materials | Discovered new exit (range 7) 265 | -10/Materials | Entered Mines 302 | -10/Mines | Received a Rocket Launcher from a helpful Derelict 319 | -10/Mines | Discovered new exit (range 10) 327 | -10/Mines | Build established: Mutant 347 | -10/Mines | Excavation squad dispatched 347 | -10/Mines | A large section of the Mines collapsed 376 | -10/Mines | Entered Materials 376 | -9/Materials | Evolved 2 slots: Weapon x2 593 | -9/Materials | Discovered new exit (range 15) 632 | -9/Materials | Entered Mines 639 | -9/Mines | Found the Drone Emporium 652 | -9/Mines | Found Prototype Device 654 | -9/Mines | Identified Decoy Drone Bay 798 | -9/Mines | Assembled infested the area 833 | -9/Mines | Found a hidden stash of uninstalled traps 882 | -9/Mines | Discovered new exit (range 7) 893 | -9/Mines | Entered Materials 893 | -8/Materials | Evolved 2 slots: Utility x2 1224 | -8/Materials | Lost 3 parts (1u2w) 1266 | -8/Materials | Self-destructed Last Messages --------------- 01151_ Penetrated by Slug. 01152_ K-01 Serf collects debris. 01169_ Slug penetrates Wall. 01169_ K-01 Serf collects debris. 01172_ Rocket Launcher destroyed. 01173_ K-01 Serf collects debris. 01176_ Slug penetrates K-01 Serf. 01177_ K-01 Serf collects debris. 01190_ Decoy Drone Bay destroyed. 01193_ Lgt. Cannon destroyed. 01206_ Acquired Arm. Treads. 01227_ K-01 Serf collects debris. 01232_ Slammed into Y-45 Defender. 01233_ K-01 Serf collects debris. 01234_ Lgt. Nuclear Core destroyed. 01234_ System corrupted by crushing effect (+2). 01234_ Slammed into Y-45 Defender. 01237_ K-01 Serf collects debris. 01237_ Slammed into Y-45 Defender. 01241_ K-01 Serf collects debris. Map ----- +----------------------------------------------------+ | ??????# ??????????????????????????# [[! #### | | ??????# ???????????????????????????# #??? | | ??????#?????????????????###???????## #### | | ???????????????????????? ???##### # | | ???????????????????????? | | ???????????????????????? | | ???????????????????????? ! | | ???????????????????????? ####### ####### | | ????????????????????????# #???????#######?????## | | ????????????????????????# ###########??????????# | | ????????????????????????#a# ] #??????????# | | ????????????????????????# # #??????????# | | ??????# ###+######### # ]]! #??????????# | | ?????? # ]] #??????????# | | ?????? + """ ]! #?????????## | | ?????? g # """ #######+### | | ??????# ###+######### # """ + | | ??????????????# ??#Y# #### | | ??????????????# ?# ## ########??# | | ??????????????# # ####???????###/##+### | | ??????????????# # ####???????# #### | | ??????????????# /g +???????# """ #??? | | ??????????????# """ """ #/####???????# """ #??? | | ????????????????""" ""??#g #????????# """ #??? | | ?????????????????"" ????#b #????????#!!! #??? | | ?????????????????#??????#@ #????????#!!! """ #??? | | ????????????????????????# #????????#!! """ #??? | | ????????????????????????# #????????# """ #??? | | ????????????????????????# #????????# #??? | | ????????????????????????# #????????##########??? | | ????????????????????????#####????????????????????? | | ?????????????????????????????????????????????????? | | ?????????????????????????????????????????????????? | | ?????????????????????????????????????????????????? | | ?????????????????????????????????????????????????? | | ?????????????????????????????????????????????????? | | ?????????????????????????????????????????????????? | | ?????????????????????????????????????????????????? | | ?????????????????????????????????????????????????? | | ?????????????????????????????????????????????????? | | ?????????????????????????????????????????????????? | | ?????????????????????????????????????????????????? | | ?????????????????????????????????????????????????? | | ?????????????????????????????????????????????????? | | ?????????????????????????????????????????????????? | | ?????????????????????????????????????????????????? | | ?????????????????????????????????????????????????? | | ?????????????????????????????????????????????????? | | ?????????????????????????????????????????????????? | | ?????????????????????????????????????????????????? | +----------------------------------------------------+ Best States ------------- Heat Dissipation 38 Energy Generation 14 Energy Capacity 160 Matter Stores 300 Matter Capacity 400 Sight Range 20 Terrain Scan Density 10 Resistance: KI 20 Resistance: TH 20 Resistance: EX 20 Resistance: EM 20 Resistance: I 20 Resistance: S 20 Resistance: P 20 Evasion (%) 40 Targeting Accuracy 5 Recoil Reduction 1 Offensive Hacking 10 Item Schematics ----------------- None Robot Schematics ------------------ None Fabricated ------------ Nothing Alien Tech Used ----------------- None Achievements -------------- I Survived The Infestation Challenges ------------ None Game ------ Seed TitaniumOmegaKatana Manual? 0 Play Time 00:14:12 Cumulative 3.2 hours Start 2021.05.17 @ 20:22:55 End 2021.05.17 @ 23:07:32 Sessions 3 Manual Loads 0 Difficulty Adventurer Special Mode None Game No. 6 Rogue 0 Adventurer 6 Explorer 0 Win Type - Total 0 Types 0/0/0/0/0/0/0/0/0 Lore% 1 Gallery% 10 Achievement% 9 Wizard Run 0 Options --------- ASCII 0 Keyboard 0 Movement Numpad Keybinds 0 Fullscreen 1 Font 18/SmallcapsGlow Map View 76x50 Tactical HUD 1 Map Filters NONE Filters NONE Steam 1 RUN: 8808503e-4175-42ac-a3d4-8b8de78cd248